[Event "15th Chennai GM Open 2025"]
[Site "Chennai"]
[Date "2025.01.05"]
[Round "6.4"]
[White "Aronyak Ghosh"]
[Black "Sarveshwaran V"]
[Result "1-0"]
[ECO "C00"]
[WhiteElo "2544"]
[BlackElo "2150"]
[Annotator "TA"]
[PlyCount "139"]
[EventDate "2025.01.02"]
[EventType "swiss"]
[EventCountry "IND"]
[SourceTitle "playchess.com"]
[Source "ChessBase"]
[SourceQuality "1"]
[TimeControl "5400+30"]

{[%evp 19,138,13,17,0,2,9,27,20,27,29,32,24,37,20,36,27,30,22,19,24,24,13,39,38,43,0,36,16,47,31,68,60,52,28,42,42,46,22,18,7,12,-6,-16,-13,-22,-7,4,-57,-17,-11,0,0,16,16,108,-42,-57,-197,-166,-193,-197,-191,-169,-169,49,50,66,66,134,72,72,79,195,193,217,175,175,172,166,145,338,318,1856,1427,29963,29970,29978,465,404,404,387,179,366,186,186,186,217,217,216,120,215,215,215,215,215,215,29991,29985,29985,29986,29991,29992,29992,29993,29993,29994,29994,29995,29997,29998,29999]} 1. Nf3 {[%emt 0:00:35]} d5 {[%emt 0:00:26]} 2. g3 {[%emt 0:00:09]} Nf6 {[%emt 0:00:19]} 3. Bg2 {[%emt 0:00:08]} e6 {[%emt 0:00:13]} 4. O-O {[%emt 0:00:12]} Be7 {[%emt 0:00:14]} 5. d3 {[%emt 0:00:32]} O-O {[%emt 0:00:12]} 6. Nbd2 {[%emt 0:00:13]} c5 {[%emt 0:01:41]} 7. e4 {[%emt 0:00:08]} Nc6 {[%emt 0:00:48]} 8. Re1 {[%emt 0:00:24]} dxe4 {[%emt 0:04:38]} 9. dxe4 {[%emt 0:02:09]} e5 {[%emt 0:05:07]} 10. c3 {[%emt 0:00:31]} Be6 {[%emt 0:01:30]} 11. Qe2 {[%emt 0:07:18]} Qc7 {[%emt 0:01:58]} 12. Nf1 {[%emt 0:03:29]} Rfe8 {[%emt 0:05:13]} 13. Bg5 {[%emt 0:07:55]} Rad8 {[%emt 0:07:04]} 14. Bxf6 {[%emt 0:03:12]} Bxf6 {[%emt 0:00:36]} 15. Ne3 {[%emt 0:00:18]} Ne7 {[%emt 0:03:09]} 16. h4 {[%emt 0:07:39]} h6 {[%emt 0:03:31]} 17. Nd2 {[%emt 0:21:05]} g6 {[%emt 0:20:44]} 18. a4 {[%emt 0:02:23]} h5 {[%emt 0:02:46]} 19. Rad1 {[%emt 0:03:30]} Bg7 {[%emt 0:02:15]} 20. Ndc4 {[%emt 0:01:17]} Qc6 {[%emt 0:09:59]} 21. Qc2 {[%emt 0:03:37]} b6 {[%emt 0:02:42]} 22. Nd5 {[%emt 0:07:01] Excellent horsemanship.} Nc8 {[%emt 0:04:16]} (22... Bxd5 $2 23. exd5 Qd7 (23... Nxd5 $2 24. Qd2 $18) 24. d6 $18 (24. Nxe5 Bxe5 25. Rxe5 Nf5 $18)) 23. Rd3 {[%emt 0:05:59]} Kh7 {[%emt 0:01:03]} 24. Red1 {[%emt 0:00:43]} a6 {[%emt 0:00:59]} 25. Qb3 {[%emt 0:03:35] White is more active.} Qb7 {[%emt 0:07:48]} 26. Bf3 {[%emt 0:04:19]} (26. Ncxb6 $2 c4 27. Qxc4 Nxb6 $19) 26... Rf8 {[%emt 0:06:34]} 27. Qa3 {[%emt 0:01:54]} (27. Ncxb6 $2 c4 28. Qxc4 Nxb6 $19) 27... Rd7 {[%emt 0:04:52]} 28. b4 {[%emt 0:02:39]} cxb4 {[%emt 0:00:41]} 29. Qxb4 {[%emt 0:01:12][%cal Od5f6] next Nf6+! is good for White.} Rfd8 {[%emt 0:00:33]} 30. Rb1 {[%emt 0:01:37][%cal Rc4b6]} (30. Ncxb6 $2 Nxb6 31. c4 Nxd5 32. Qxb7 Rxb7 $19) 30... Bxd5 {[%emt 0:02:30]} 31. Rxd5 {[%emt 0:00:20]} (31. exd5 f5 32. Rdd1 (32. Nxb6 $2 Qxb6 33. Qxb6 Nxb6 $19) 32... e4) 31... Rxd5 {[%emt 0:00:10]} 32. exd5 {[%emt 0:00:06][%cal Of3g2]} f5 {[%emt 0:00:24][%cal Bf7f5,Bf5f4][%mdl 32]} 33. Ne3 {[%emt 0:02:55]} (33. Nxb6 $11 e4 34. Be2) 33... e4 {[%emt 0:00:48]} 34. Be2 {[%emt 0:00:01]} Qc7 {[%emt 0:00:17]} 35. Bxa6 {[%emt 0:00:46]} f4 {[%emt 0:01:11]} 36. Qc4 {[%emt 0:01:22]} Qe7 {[%emt 0:00:35]} (36... Qa7 $11 37. Nf5 (37. gxf4 Nd6 $11) (37. Bxc8 fxe3 38. Be6 exf2+ 39. Kg2 e3 $15) 37... Nd6 38. Nxd6 Rxd6) 37. Bxc8 {[%emt 0:04:06]} (37. gxf4 $16 Nd6 38. Qc6) 37... fxe3 $15 {[%emt 0:00:10]} 38. Be6 {[%emt 0:02:16] White is weak on the dark squares} (38. Rxb6 exf2+ 39. Kxf2 (39. Kf1 $2 Qe5 $19) 39... e3+ (39... Qf8+ $2 40. Kg1 $19) 40. Ke2 Qf7 $19) ({Only move:} 38. fxe3 $15 Rf8 39. Rf1 (39. Rxb6 $2 Qe5 $19)) 38... exf2+ $19 {[%emt 0:00:14]} 39. Kg2 {[%emt 0:00:04]} e3 {[%emt 0:00:10]} 40. Qe4 {[%emt 0:00:02][%cal Oe6g8]} (40. Rxb6 $2 Rf8 41. Qf1 e2 (41... Bxc3 $2 42. Rb1 $19) 42. Qxe2 f1=Q+ (42... f1=B+ $2 43. Qxf1 Rxf1 44. Kxf1 $19) 43. Qxf1 Rxf1 44. Kxf1 Qf6+ (44... Bxc3 $2 45. Rc6 $19) 45. Kg2 Qxc3 $19) 40... Qc5 {[%emt 0:00:46][%cal Od8f8] ...Rf8! would now be deadly.} (40... Bxc3 $2 41. Bg8+ (41. Rxb6 $2 Rf8 $19) (41. Qxe3 Qc7 $14) 41... Kxg8 42. Qxe7 $18) 41. g4 {[%emt 0:00:10][%cal Bg3g4,Bg4h5][%mdl 32]} e2 $2 {[%emt 0:00:56]} (41... Bxc3 42. gxh5 Kh8 43. Qf4 $16) (41... Qxc3 $19 42. gxh5 Kh8 43. hxg6 Qd2) 42. Qxe2 $14 {[%emt 0:00:15]} Rf8 {[%emt 0:00:47]} 43. gxh5 {[%emt 0:00:24]} Rf6 {[%emt 0:00:35]} (43... Rf4 $1 $14) 44. Rf1 {[%emt 0:01:18]} ({White should try} 44. Qg4 $1 {hxg6+ is the strong threat.} Bh6 45. Rf1) 44... Qxc3 $16 {[%emt 0:00:30]} 45. Rxf2 {[%emt 0:00:13]} (45. hxg6+ Rxg6+ 46. Kh1 (46. Kxf2 $2 Qg3#) (46. Bg4 $2 Be5 $19) 46... Bd4 47. Rxf2 (47. Bf5 Kg7 $17) 47... Bxf2 48. Qxf2 Rf6 $15) 45... Rxf2+ {[%emt 0:00:33]} (45... Kh6 $16) 46. Qxf2 {[%emt 0:00:03][%mdl 4096] Endgame KQB-KQB. White is two pawns up.} (46. Kxf2 $6 Qd4+ 47. Kf3 Qxh4 $14) 46... Qd3 {[%emt 0:00:28]} 47. hxg6+ {[%emt 0:02:20]} (47. Qxb6 Qe4+ (47... gxh5 48. Qf2 $16) 48. Kf1 Qd3+ (48... gxh5 49. Qf2 $16) 49. Kg2 Qe4+ 50. Kf1 Qc4+ 51. Kg2 Qe4+ $11 (51... Qxa4 52. hxg6+ Kxg6 53. Bd7+ Bf6 54. Bxa4 Kf7 55. Qe6+ Kg6 56. Be8+ Kg7 57. h5 Kh8 58. Qxf6+ Kg8 59. h6 Kh7 60. Qg7#)) 47... Qxg6+ {[%emt 0:00:08]} 48. Kh3 {[%emt 0:00:05][%cal Oe6f5]} Qd3+ {[%emt 0:00:14]} 49. Qg3 {[%emt 0:00:10]} Qf1+ $2 {[%emt 0:00:48]} (49... Qe4 $16 {is a better defense.}) 50. Kg4 $18 {[%emt 0:00:06]} Qd1+ $2 {[%emt 0:00:28]} (50... Kg6 51. h5+ Kh7) 51. Qf3 $1 {[%emt 0:00:13]} Qxa4+ {[%emt 0:00:54]} 52. Kh3 {[%emt 0:00:02]} Qe8 {[%emt 0:00:30]} 53. Qf5+ {[%emt 0:00:01]} (53. Qe4+ $142 Kh8 54. d6 Qf8 55. d7 Bf6 56. Qg6 Bd8 57. Bf5 Qa3+ 58. Bd3) 53... Kh8 {[%emt 0:00:13]} 54. d6 {[%emt 0:01:23]} Qf8 {[%emt 0:00:29]} 55. Qh5+ {[%emt 0:00:01]} Bh6 {[%emt 0:00:01]} 56. Qe5+ {[%emt 0:00:01]} (56. Kg2 $142 {White wants to mate with d7.} Qf4 57. Qd5) 56... Bg7 {[%emt 0:00:18]} 57. Qe2 $1 {[%emt 0:00:16] Prevents Qf1+.} Qf6 {[%emt 0:01:28]} 58. d7 $1 {[%emt 0:03:37]} Qc3+ {[%emt 0:00:09]} 59. Kg2 {[%emt 0:00:10]} (59. Kg4 $18 Qd4+ 60. Kh5) 59... Qc6+ {[%emt 0:00:18] [#]} (59... Bf6 $16 60. Bd5 Kg7 61. Qg4+ Kh6) 60. Kg3 $1 {[%emt 0:00:15]} Qc3+ {[%emt 0:00:15]} 61. Kg4 {[%emt 0:00:28]} Qd4+ {[%emt 0:00:09] [#]} 62. Kh5 $1 {[%emt 0:00:32][%cal Oe2e3]} b5 $2 {[%emt 0:01:42]} (62... Qf6 $18 63. Qe3 Bf8) 63. Bf5 {[%emt 0:00:33]} Bf8 {[%emt 0:00:22]} 64. Qe8 {[%emt 0:00:55][%cal Re8f8]} ({Less strong is} 64. Qxb5 Be7 65. Qb8+ Kg7 66. Qg3+ Kf8 $16) 64... Qf6 {[%emt 0:00:21]} 65. d8=Q {[%emt 0:00:51]} ({Weaker is} 65. d8=B Qxf5+ 66. Bg5 b4 $15) 65... Qxf5+ {[%emt 0:00:08]} 66. Qg5 {[%emt 0:00:02]} Qf3+ {[%emt 0:00:11]} 67. Kg6 {[%emt 0:00:25]} Qd3+ {[%emt 0:00:39]} 68. Kf7 {[%emt 0:00:21][%csl Gf7][%cal Rg5g7]} Qh7+ {[%emt 0:01:18]} 69. Kxf8 {[%emt 0:00:15]} Qg7+ {[%emt 0:00:28]} 70. Qxg7# {[%emt 0:00:05]} 1-0

[Event "15th Chennai GM Open 2025"]
[Site "Chennai"]
[Date "2025.01.05"]
[Round "6.5"]
[White "Deepan Chakkravarthy J."]
[Black "Jaiswal, Rupesh"]
[Result "1-0"]
[ECO "B91"]
[WhiteElo "2413"]
[BlackElo "2093"]
[Annotator "TA"]
[PlyCount "77"]
[EventDate "2025.01.02"]
[EventType "swiss"]
[EventCountry "IND"]
[SourceTitle "playchess.com"]
[Source "ChessBase"]
[SourceQuality "1"]
[TimeControl "5400+30"]

{[%evp 16,77,14,0,21,7,15,11,23,31,48,51,56,54,68,69,60,59,64,58,64,70,74,56,60,56,65,61,62,72,80,80,95,42,118,131,120,133,189,118,208,214,207,153,158,162,245,233,263,241,272,264,468,454,29972,29973,29973,29973,29985,29986,29988,29986,29986,29987]} 1. e4 {[%emt 0:00:07]} c5 {[%emt 0:00:08]} 2. Nf3 {[%emt 0:00:02]} d6 {[%emt 0:00:11]} 3. d4 {[%emt 0:00:04]} cxd4 {[%emt 0:00:03]} 4. Nxd4 {[%emt 0:00:03]} Nf6 {[%emt 0:00:10]} 5. Nc3 {[%emt 0:00:04]} a6 {[%emt 0:00:06]} 6. g3 {[%emt 0:00:05]} e5 {[%emt 0:01:10]} 7. Nde2 {[%emt 0:00:03]} Be7 {[%emt 0:02:07]} 8. Bg2 {[%emt 0:00:06]} O-O {[%emt 0:00:46]} 9. a4 {[%emt 0:00:09]} Be6 {[%emt 0:04:38]} 10. h3 {[%emt 0:00:12]} Nc6 {[%emt 0:07:43]} 11. Nd5 {[%emt 0:04:31] Prevents Nb4} a5 {[%emt 0:00:43]} 12. c4 {[%emt 0:13:20]} Bxd5 {[%emt 0:04:08]} 13. cxd5 {[%emt 0:00:15]} (13. exd5 Nb4 $11) 13... Nb4 {[%emt 0:00:05]} 14. O-O {[%emt 0:01:10]} Nd7 {[%emt 0:01:09]} 15. h4 $1 {[%emt 0:04:55] Against Bg5} Nc5 {[%emt 0:07:08]} 16. Be3 {[%emt 0:00:15]} b6 {[%emt 0:04:36]} 17. Nc3 {[%emt 0:00:53]} g6 {[%emt 0:09:39]} 18. Bh6 {[%emt 0:02:39]} Re8 {[%emt 0:00:05]} 19. Ra3 {[%emt 0:00:04]} Bf8 {[%emt 0:01:59]} 20. Be3 {[%emt 0:00:06]} Bg7 {[%emt 0:02:05]} 21. h5 {[%emt 0:08:46]} Rf8 {[%emt 0:04:37]} 22. Nb5 {[%emt 0:01:03]} Rb8 {[%emt 0:07:27]} 23. Kh2 {[%emt 0:07:07]} f5 {[%emt 0:09:07]} 24. Rh1 {[%emt 0:13:42]} ({White should try} 24. exf5 $16 gxf5 25. h6) 24... f4 {[%emt 0:03:08]} (24... Nxe4 $14 25. Bxe4 fxe4) 25. Bxc5 $16 {[%emt 0:00:30]} bxc5 {[%emt 0:02:57]} 26. hxg6 {[%emt 0:00:04]} fxg3+ {[%emt 0:03:56]} (26... hxg6 $16 27. Kg1 c4) 27. fxg3 {[%emt 0:01:35]} (27. Rxg3 $18 hxg6 28. Qe2 (28. Rxg6 Qh4+ 29. Bh3 Qf4+ 30. Rg3 Qxf2+ 31. Rg2 Qf4+ 32. Kg1 Qe3+ 33. Kh2 Qf4+ 34. Kg1 Qe3+ 35. Kh2 Qf4+ $11)) 27... Rf6 {[%emt 0:07:10]} (27... c4 $16) 28. Bh3 {[%emt 0:04:46] Be6+ is the strong threat.} Rxg6 {[%emt 0:05:35]} 29. Be6+ {[%emt 0:00:08]} Kh8 {[%emt 0:00:15]} 30. Kg2 {[%emt 0:00:04]} Qe7 {[%emt 0:04:17] Black is weak on the light squares} (30... c4 {might work better.}) 31. Rf3 {[%emt 0:14:19]} Rf8 {[%emt 0:01:15]} 32. Rxf8+ {[%emt 0:00:26]} Bxf8 {[%emt 0:01:11]} 33. Rf1 {[%emt 0:08:52]} Rf6 $2 {[%emt 0:03:56]} (33... Bg7 34. b3 Bf6) 34. Nxd6 $18 {[%emt 0:01:48][%cal Bb5d6,Bd6f7,Bf7g5][%mdl 32]} Rxe6 {[%emt 0:02:30]} ({Don't play} 34... Rxf1 35. Qxf1 Nc2 (35... Qxd6 $2 {perishes.} 36. Qf7 $18) 36. Nf7+ Kg8 37. Nh6+ (37. Nxe5+ Qxe6 38. dxe6 Ne3+ 39. Kf2 Nxf1 $18) 37... Kh8 38. d6 Ne3+ 39. Kg1 Nxf1 40. dxe7 Bxe7 41. Kxf1) (34... Nc2 $18 35. Nc4 (35. Qxc2 Rxf1 36. Kxf1 Qxd6 $18) (35. Nf7+ Rxf7 36. Qxc2 Rxf1 $16) (35. Nf5 Rxf5 36. Qxc2 Rxf1 $16) 35... Nd4 36. Rxf6 (36. Nxa5 Rxf1 37. Qxf1 Kg7 $18) (36. Nxe5 Nxe6 37. dxe6 Rxe6 $18) 36... Qxf6) 35. Nf7+ {[%emt 0:01:39]} Kg8 {[%emt 0:00:46]} 36. dxe6 {[%emt 0:00:05]} Qxe6 {[%emt 0:00:08]} 37. Ng5 {[%emt 0:00:36]} Qe7 {[%emt 0:00:39]} 38. Qb3+ {[%emt 0:01:07]} Kh8 {[%emt 0:00:34]} 39. Rf7 {[%emt 0:00:47]} 1-0

[Event "15th Chennai GM Open 2025"]
[Site "Chennai"]
[Date "2025.01.05"]
[Round "6.6"]
[White "Sathvik Adiga"]
[Black "Madhesh Kumar S"]
[Result "1/2-1/2"]
[ECO "C55"]
[WhiteElo "2395"]
[BlackElo "2006"]
[Annotator "TA"]
[PlyCount "134"]
[EventDate "2025.01.02"]
[EventType "swiss"]
[EventCountry "IND"]
[SourceTitle "playchess.com"]
[Source "ChessBase"]
[SourceQuality "1"]
[TimeControl "5400+30"]

{[%evp 33,134,-30,-26,-37,0,0,0,0,0,0,8,0,0,0,0,0,0,0,0,0,9,8,8,4,0,0,6,6,15,0,8,6,16,0,0,0,0,-8,-12,-14,-8,-10,-10,-26,-26,-26,-26,-26,-26,-26,-26,-39,-39,-39,-35,-39,-39,-37,-33,-77,-77,-77,-64,-77,-77,-72,-8,-8,-8,-8,0,-77,-77,-77,-77,-29978,-29979,-29979,-77,-29980,-29981,-29981,-29982,-29982,-29983,-29983,-29984,-29984,-137,-145,-139,-139,-135,-139,-64,-64,-64,-79,-112,-64,-92,-99,-99]} 1. e4 {[%emt 0:00:01]} e5 {[%emt 0:00:06]} 2. Nf3 {[%emt 0:00:03]} Nc6 {[%emt 0:00:06]} 3. Bc4 {[%emt 0:00:03]} Nf6 {[%emt 0:00:05]} 4. d3 {[%emt 0:00:04]} h6 {[%emt 0:00:22]} 5. O-O {[%emt 0:00:04]} d6 {[%emt 0:00:14]} 6. c3 {[%emt 0:00:04]} g5 {[%emt 0:00:08]} 7. Nbd2 {[%emt 0:00:05]} Bg7 {[%emt 0:00:14]} 8. Bb3 {[%emt 0:00:05]} Ne7 {[%emt 0:02:25]} 9. Re1 {[%emt 0:12:03]} Ng6 {[%emt 0:01:31]} 10. Nf1 {[%emt 0:01:07]} O-O {[%emt 0:02:58]} 11. h3 {[%emt 0:00:07]} d5 {[%emt 0:04:46]} 12. exd5 {[%emt 0:05:14]} Nxd5 {[%emt 0:00:08]} 13. d4 {[%emt 0:00:56]} exd4 {[%emt 0:03:05]} 14. cxd4 {[%emt 0:05:38]} Ndf4 {[%emt 0:10:39]} 15. Ng3 {[%emt 0:08:58]} Be6 {[%emt 0:02:05]} 16. Ne2 {[%emt 0:10:39]} Nxe2+ {[%emt 0:08:01]} 17. Rxe2 {[%emt 0:00:34]} Bd5 {[%emt 0:00:17]} 18. Qd3 {[%emt 0:06:40]} c6 {[%emt 0:06:13]} 19. Ne5 {[%emt 0:12:36]} Nxe5 {[%emt 0:04:59]} 20. dxe5 {[%emt 0:01:13]} Bxb3 {[%emt 0:00:51]} 21. Qxb3 {[%emt 0:00:30]} Qb6 {[%emt 0:00:05]} 22. Qc2 {[%emt 0:07:11]} Rfe8 {[%emt 0:04:40]} 23. h4 {[%emt 0:03:20]} Rxe5 {[%emt 0:03:08]} 24. Rxe5 {[%emt 0:00:50]} Bxe5 {[%emt 0:00:07]} 25. hxg5 {[%emt 0:00:08]} hxg5 {[%emt 0:14:22]} 26. Bxg5 {[%emt 0:05:46]} Qxb2 {[%emt 0:01:17]} 27. Qxb2 {[%emt 0:00:07]} Bxb2 {[%emt 0:00:08]} 28. Rb1 {[%emt 0:00:03]} Bd4 {[%emt 0:07:20]} 29. Rxb7 {[%emt 0:00:08]} Re8 {[%emt 0:02:15]} 30. Kf1 {[%emt 0:00:44]} Kg7 {[%emt 0:00:43]} 31. Rc7 {[%emt 0:01:42]} Re5 {[%emt 0:01:56]} 32. Bd2 {[%emt 0:04:38]} Rb5 {[%emt 0:04:25]} 33. Ke2 {[%emt 0:05:06]} Rb2 {[%emt 0:00:27]} 34. Kd3 {[%emt 0:00:23]} Rxa2 {[%emt 0:00:16]} 35. Rxc6 {[%emt 0:00:14]} Bxf2 {[%emt 0:00:13]} 36. Bc3+ {[%emt 0:00:07]} Kh7 {[%emt 0:00:05]} 37. g4 {[%emt 0:00:28]} Bh4 {[%emt 0:01:08]} 38. Rc8 {[%emt 0:00:48]} f6 {[%emt 0:00:11]} 39. Ke4 {[%emt 0:00:35]} Kg6 {[%emt 0:01:18]} 40. Rg8+ {[%emt 0:00:25]} Kf7 {[%emt 0:00:05]} 41. Rc8 {[%emt 0:00:33]} Rg2 {[%emt 0:01:47]} 42. Rc7+ {[%emt 0:01:13]} Kg6 {[%emt 0:00:06]} 43. Rxa7 {[%emt 0:00:24]} Rxg4+ {[%emt 0:00:08]} 44. Kd3 {[%emt 0:00:57]} Rg3+ {[%emt 0:00:09]} 45. Kc2 {[%emt 0:00:01]} Bg5 {[%emt 0:00:35]} 46. Be1 {[%emt 0:00:23]} Re3 {[%emt 0:00:29]} 47. Kd1 {[%emt 0:00:15]} Kh5 {[%emt 0:00:42]} 48. Rc7 {[%emt 0:01:22]} Kg4 {[%emt 0:01:07]} 49. Rc2 {[%emt 0:01:01]} Kf3 {[%emt 0:01:13]} (49... Re4 $17) 50. Rf2+ $1 $11 {[%emt 0:00:02]} Ke4 {[%emt 0:00:06]} 51. Re2 {[%emt 0:00:13]} Kf3 {[%emt 0:01:09]} 52. Rxe3+ {[%emt 0:00:40]} (52. Rf2+ $11 {was the only way to keep the balance.} Kg4 53. Rh2) 52... Bxe3 $17 {[%emt 0:00:29]} 53. Bc3 {[%emt 0:00:05]} f5 {[%emt 0:00:05]} 54. Ke1 $2 {[%emt 0:00:04][%mdl 8192]} (54. Bf6 $17) 54... Kg2 $1 {[%emt 0:00:06]} 55. Be5 {[%emt 0:01:30]} Bf2+ $1 {[%emt 0:00:09]} 56. Ke2 $2 {[%emt 0:00:31][%mdl 8192]} (56. Kd1 $17) 56... Bg3 {[%emt 0:00:06]} 57. Bd4 {[%emt 0:00:04] [#]} f4 $1 {[%emt 0:00:06]} 58. Kd3 {[%emt 0:01:16]} f3 {[%emt 0:01:00]} 59. Ke4 {[%emt 0:00:02]} Bf2 {[%emt 0:00:19]} 60. Bc3 {[%emt 0:00:07] [#]} Be3 $2 {[%emt 0:00:10]} (60... Bb6 $1 {mates} 61. Kd5 (61. Be1 Bc7) 61... f2 62. Kc6 Be3 (62... f1=R 63. Kxb6 Rb1+ 64. Kc5 $11) 63. Be5 f1=Q (63... f1=B 64. Kd5 $17) 64. Kd5 Qb5+ 65. Kd6 Bc5+ (65... Bf4 {gets mated.} 66. Bxf4 Qb8+ 67. Ke6 Qxf4 68. Kd5 Kf3 69. Kc6 Qc4+ 70. Kd6 Kf4 71. Ke7 Qc6 72. Kf7 Kf5 73. Kg8 Kf6 74. Kh8 Kg6 75. Kg8 Qe8#) 66. Kd5 Bf2+ 67. Ke6 Qc6+ (67... Qb1 $2 68. Kd5 $19) 68. Kf5 Kf3 69. Bg7 Bh4 70. Ke5 Be7 (70... Qc5+ 71. Ke6 Ke4 72. Bf6 Qc6+ 73. Ke7 Bxf6+ 74. Kf7 Kf5 75. Kf8 Kg6 76. Kg8 Qe8#) 71. Kd4 Bd6 (71... Bf6+ 72. Bxf6 Qxf6+ 73. Kd5 Qd8+ 74. Kc6 Ke3 75. Kc5 Kd3 76. Kb5 Qd6 77. Ka4 Qb6 78. Ka3 Kc3 79. Ka4 Qb4#) (71... Bb4 72. Ke5 Bc3+ 73. Kf5 Qe4+ 74. Kg5 Bxg7 75. Kh5 Qg4#) 72. Kd3 Bb4 73. Bd4 Be1 74. Bh8 Qe4#) 61. Be1 $17 {[%emt 0:00:05]} Bd2 {[%emt 0:00:19]} 62. Bh4 {[%emt 0:00:06]} Bc1 {[%emt 0:00:16]} 63. Kf5 {[%emt 0:00:30]} Be3 {[%emt 0:00:33]} ({Black should play} 63... Kf1 $17) 64. Kg4 $15 {[%emt 0:00:03]} Bf2 {[%emt 0:02:06]} 65. Bf6 {[%emt 0:00:04]} Be1 {[%emt 0:00:35]} 66. Bd4 {[%emt 0:00:04]} Bg3 $1 {[%emt 0:00:15]} 67. Bc5 {[%emt 0:00:05]} Bf2 {[%emt 0:02:43]} 1/2-1/2

[Event "15th Chennai GM Open 2025"]
[Site "Chennai"]
[Date "2025.01.05"]
[Round "6.7"]
[White "Vijay, Shreeram P"]
[Black "Sanket Chakravarty"]
[Result "1-0"]
[ECO "B24"]
[WhiteElo "2025"]
[BlackElo "2374"]
[Annotator "TA"]
[PlyCount "77"]
[EventDate "2025.01.02"]
[EventType "swiss"]
[EventCountry "IND"]
[SourceTitle "playchess.com"]
[Source "ChessBase"]
[SourceQuality "1"]
[TimeControl "5400+30"]

{[%evp 15,77,25,21,7,20,0,52,0,79,78,70,6,54,0,0,-14,0,3,-1,-18,109,131,250,226,257,252,343,346,314,350,339,322,311,302,318,307,297,296,941,904,904,473,753,697,741,728,788,741,751,803,813,793,954,841,1103,1055,1036,1036,1228,1036,1195,1069,982,904]} 1. e4 {[%emt 0:00:10]} c5 {[%emt 0:04:36]} 2. Nc3 {[%emt 0:00:54]} e6 {[%emt 0:00:18]} 3. Nge2 {[%emt 0:00:21]} Nc6 {[%emt 0:00:34]} 4. g3 {[%emt 0:00:21]} d5 {[%emt 0:00:26]} 5. exd5 {[%emt 0:00:32]} exd5 {[%emt 0:00:28]} 6. d4 {[%emt 0:00:52]} cxd4 {[%emt 0:01:43]} 7. Nxd4 {[%emt 0:00:15]} Nf6 {[%emt 0:00:10]} 8. Bg2 {[%emt 0:06:06]} Bg4 {[%emt 0:00:11]} 9. Nde2 {[%emt 0:03:50][%cal Oe1g1]} Bc5 {[%emt 0:21:59]} 10. h3 {[%emt 0:16:56]} Bf5 {[%emt 0:00:48]} (10... Be6 $11) 11. Bg5 {[%emt 0:14:42]} ({White should play} 11. O-O $14) 11... h6 {[%emt 0:09:57]} (11... d4 $11 12. Nd5 Qa5+ 13. Bd2 Qd8) 12. Bxf6 $16 {[%emt 0:01:10]} Qxf6 {[%emt 0:00:04]} 13. O-O {[%emt 0:08:19]} (13. Bxd5 $2 Bxf2+ 14. Kf1 Bxg3 $19) (13. Nxd5 $14 Qe5 14. g4) 13... O-O {[%emt 0:01:27]} (13... O-O-O $11) 14. Qd2 {[%emt 0:07:04]} (14. Qxd5 $14 Bb6 15. Qb3) 14... Rad8 $11 {[%emt 0:01:13]} 15. a3 {[%emt 0:00:29][%cal Oa1d1]} Qg6 {[%emt 0:09:44]} 16. b4 {[%emt 0:06:56]} Bb6 {[%emt 0:00:53][%cal Bc5b6,Bb6c7,Bc7b8][%mdl 32]} 17. Nxd5 {[%emt 0:01:47]} Rfe8 {[%emt 0:01:23]} (17... Bxc2 $6 18. Nef4 Qh7 19. Rfe1 $16) (17... Be4 $1 $11 18. Bxe4 Qxe4) 18. c4 $16 {[%emt 0:08:01][%cal Bc2c4,Bc4c5][%mdl 32]} Ne5 {[%emt 0:02:42]} (18... Rxe2 $16 19. Qxe2 Bd3) 19. c5 $18 {[%emt 0:04:35]} Bc7 {[%emt 0:09:20][%cal Of5h3]} 20. Nef4 {[%emt 0:05:06] A dynamic duo of knights.} Qg5 {[%emt 0:00:28][%cal Of5h3]} 21. Qc3 {[%emt 0:02:25]} Bb8 {[%emt 0:01:14]} 22. h4 {[%emt 0:01:20]} Qg4 {[%emt 0:00:02]} 23. Ne3 {[%emt 0:02:17]} Nf3+ {[%emt 0:01:47]} 24. Kh1 {[%emt 0:00:02]} Rxe3 {[%emt 0:00:39]} 25. Qxe3 {[%emt 0:00:01]} Nxh4 {[%emt 0:00:22]} 26. Qe7 {[%emt 0:01:41]} Nxg2 $2 {[%emt 0:01:40]} (26... Rd2) 27. Qxd8+ {[%emt 0:00:24]} Kh7 {[%emt 0:00:01]} 28. Kxg2 {[%emt 0:00:37]} (28. Nxg2 $2 {loses.} Qh3+ 29. Kg1 Be4 $19) 28... Be4+ {[%emt 0:09:02]} (28... Bxf4 $142 29. Qh4 Be4+ 30. f3 Qxh4 31. gxh4 Bc6) 29. f3 {[%emt 0:00:06]} Bxf4 {[%emt 0:00:19]} 30. Qh4 $1 {[%emt 0:00:05]} (30. fxe4 $2 {leads to mate.} Qxg3+ 31. Kh1 Qh2#) 30... Qxh4 {[%emt 0:00:10]} 31. gxh4 {[%emt 0:00:02]} Bc6 {[%emt 0:00:06]} 32. a4 {[%emt 0:01:24][%cal Ba3a4,Ba4b5,Bb5b6][%mdl 32]} a6 {[%emt 0:00:01]} 33. Rfb1 {[%emt 0:00:19]} g5 {[%emt 0:00:05]} 34. hxg5 {[%emt 0:00:04]} hxg5 {[%emt 0:00:03]} 35. b5 {[%emt 0:00:22]} axb5 {[%emt 0:00:10]} 36. axb5 {[%emt 0:00:02]} Bd5 {[%emt 0:00:06]} 37. Ra4 {[%emt 0:01:11]} Be3 {[%emt 0:00:25] [#]} 38. c6 $1 {[%emt 0:00:14]} bxc6 {[%emt 0:00:08]} 39. b6 {[%emt 0:00:01]} 1-0